Cogmind - Beta 11.1 @@@ ROGUE MODE // 2022.10.03 @ 23:33:58 Player: DuckBoy Result: Destroyed by B-75 Beast with Magnetic Acceleration Cannon Performance ------------- Evolutions (3) 1500 Regions Visited (6) 1200 Robots Destroyed (146) 730 Value Destroyed (4484) 4484 Prototype IDs (10) 200 Alien Tech Used (0) 0 Bonus (415) 415 TOTAL SCORE: 8529 Bonus ------- High Alert Combat Kills 252 Follower Combat Kills 210 Friendly Fire -47 Cogmind --------- Core Integrity 0/700 Matter 300/300 Energy 100/100 System Corruption 0% Temperature Cool (0) Movement Core (350) Ox6 Location -7/Lower Caves Parts ------- > --- POWER (1) -------- (None) > --- PROPULSION (4) --- (None) > --- UTILITY (6) ------ Improved Heat Sink Large Storage Unit Hacking Suite Hacking Suite System Shield > --- WEAPON (2) ------- (None) > --- INVENTORY (15) --- Light Nuclear Core Micro Nuclear Core Hacking Suite System Shield System Shield System Restoration Module Arc Projector Gatling Laser Beamcaster Barrage Gun Gauss Rifle Flak Gun Mini Assault Cannon Mass Driver Datajack Peak State ------------ > --- POWER ------------ Micro Nuclear Core > --- PROPULSION ------- Gravmag System Gravmag System Improved Airjet Antigrav System > --- UTILITY ---------- Large Storage Unit Improved Signal Interpreter Improved Light Armor Plating Hacking Suite Hacking Suite System Shield > --- WEAPON ----------- Phase Cannon Phase Cannon > --- INVENTORY -------- Light Nuclear Core Light Nuclear Core Micro Nuclear Core Light Treads Antigrav System Antigrav System Improved Heat Sink Hacking Suite System Restoration Module Gatling Laser High-powered Shotgun Gauss Rifle Mini Assault Cannon Mini Grenade Launcher Datajack [Rating: 54] Favorites ----------- Power Micro Nuclear Core Engine Ion Engine Power Core Micro Nuclear Core Propulsion Advanced Treads Treads Advanced Treads Leg Carbon-fiber Leg Wheel Compact Wheel Hover Unit Antigrav System Flight Unit Improved VTOL Module Utility Hacking Suite Device Sensor Array Storage Huge Storage Unit Processor Targeting Computer Hackware Hacking Suite Protection Improved Light Armor Plating Weapon Heavy Assault Rifle Energy Gun Heavy Particle Gun Energy Cannon Advanced Beam Cannon Ballistic Gun Heavy Assault Rifle Ballistic Cannon Mini Assault Cannon Launcher Mini Grenade Launcher Special Melee Weapon Improved Datajack Build | -11 -10 -9 -8 -7 -7 -7 ------- Run | Scr Mat Mat Mat Fac Low Low Slots Evolved 6 | . . 2 2 2 . . Power . | . . . . . . . Propulsion 2 | . . 2 . . . . Utility 4 | . . . 2 2 . . Weapon . | . . . . . . . Parts Attached 118 | 8 6 23 9 56 15 1 Power 10 | 1 1 2 1 3 2 . Engine 7 | 1 1 2 1 1 1 . Core 3 | . . . . 2 1 . Reactor . | . . . . . . . Propulsion 44 | 4 2 11 3 20 4 . Treads 22 | 2 1 10 3 5 1 . Leg 3 | . . . . . 3 . Wheel 3 | 2 1 . . . . . Hover 15 | . . . . 15 . . Flight 1 | . . 1 . . . . Utility 23 | 1 2 1 3 13 3 . Device 4 | . . . 1 2 1 . Storage 4 | 1 1 1 . 1 . . Processor 3 | . 1 . 2 . . . Hackware 5 | . . . . 4 1 . Protection 7 | . . . . 6 1 . Artifact . | . . . . . . . Weapon 41 | 2 1 9 2 20 6 1 Energy Gun 10 | 1 1 1 1 4 2 . Energy Cannon 6 | . . 1 . 4 1 . Ballistic Gun 13 | 1 . 7 1 4 . . Ballistic Cannon 8 | . . . . 5 3 . Launcher 3 | . . . . 2 . 1 Special Weapon . | . . . . . . . Impact Weapon . | . . . . . . . Slashing Weapon . | . . . . . . . Piercing Weapon . | . . . . . . . Special Melee Weapon 1 | . . . . 1 . . Unidentified Prototypes 10 | . . 4 1 5 . . Parts Lost 32 | . 1 3 2 13 8 5 Power 5 | . 1 . 1 1 1 1 Propulsion 15 | . . 1 1 6 4 3 Utility 4 | . . . . 2 2 . Weapon 8 | . . 2 . 4 1 1 Highest Loss Streak 6 | . 1 2 1 3 6 4 To Critical Strikes . | . . . . . . . Average Slot Usage (%) 94 | . 92 96 99 96 85 83 Engine 6 | . 7 11 8 2 3 6 Core 1 | . . . . 4 2 . Treads 21 | . 26 36 35 11 2 . Leg 2 | . . . . . 12 22 Wheel 1 | . 1 5 . . . . Hover 6 | . . . . 17 8 . Device 2 | . . . 9 1 3 7 Storage 9 | . 14 11 9 7 7 7 Processor 10 | . 13 11 18 7 2 . Hackware 10 | . . . . 20 25 23 Protection 1 | . . . . 5 . . Energy Gun 5 | . 14 2 4 5 . . Energy Cannon 2 | . . 4 4 1 . . Ballistic Gun 7 | . 14 13 9 3 . . Ballistic Cannon 2 | . . . . 2 9 14 Naked Turns . | . . . . . . . Heaviest Build 96 | 13 47 95 96 92 44 44 Greatest Support 88 | 40 40 88 88 86 45 45 Greatest Overweight (x) 10 | . 2 5 1 4 10 9 Average Overweight (x) . | . . 1 . . . . Largest Inventory Capacity 25 | 8 20 25 25 25 15 15 Average Capacity 19 | 7 16 23 25 17 15 15 Most Carried 25 | 3 20 25 25 25 15 15 Average Carried 17 | 1 12 22 24 14 13 15 Final Capacity 25 | 8 20 25 25 15 15 15 Final Carried 25 | 3 20 25 25 15 15 15 Class Distribution -------------------- 44% | Hacker-Mutant 33% | Mutant 21% | Scavenger-Mutant Dominant Class ---------------- Mutant | -10/Materials Mutant | -9/Materials Scavenger-Mutant | -8/Materials Hacker-Mutant | -7/Factory Hacker-Mutant | -7/Lower Caves Hacker-Mutant | -7/Lower Caves Resources | -11 -10 -9 -8 -7 -7 -7 ----------- Run | Scr Mat Mat Mat Fac Low Low Matter Collected 2989 | 145 293 551 293 1286 196 225 Remotely . | . . . . . . . Salvage Created 5454 | . 483 1274 1312 1962 249 174 Parts 320 | . 42 92 67 102 12 5 Haulers Intercepted 11 | . 1 5 3 2 . . Recyclers Shooed 2 | . . 2 . . . . Parts Field Recycled . | . . . . . . . Retrieved Matter . | . . . . . . . Parts Self-Destructed 14 | . . . . . 5 9 Prevented 2 | . . . . . . 2 Kills | -11 -10 -9 -8 -7 -7 -7 ------- Run | Scr Mat Mat Mat Fac Low Low Combat Hostiles Destroyed 100 | . 12 22 19 33 7 7 Guns 54 | . 12 14 10 18 . . Cannons 31 | . . 7 9 10 1 4 AOE 13 | . . . . 4 6 3 Classes Destroyed 15 | . 6 3 1 3 2 . Worker 9 | . . 4 2 3 . . Builder 2 | . . . 1 1 . . Tunneler 1 | . 1 . . . . . Hauler 11 | . 1 5 3 2 . . Recycler 6 | . . 2 . 4 . . Operator 7 | . 1 1 3 2 . . Watcher 10 | . 3 3 1 3 . . Swarmer 22 | . 6 8 . 5 . 3 Grunt 47 | . 6 6 13 19 . 3 Brawler 1 | . . . . 1 . . Sentry 17 | . . 8 6 2 . 1 Hunter 1 | . . . . 1 . . Programmer 5 | . . . . 5 . . Thug 4 | . . . . . 4 . Butcher 2 | . . . . . 2 . Mutant 1 | . . . . . 1 . Best Kill Streak 11 | . 5 11 5 5 7 3 Combat Bots Only 7 | . 5 7 5 4 7 3 Max Kills in Single Turn 3 | . 1 2 1 3 2 1 Gunslinging . | . . . . . . . Exploded 2 | . . . . 2 2 1 Melee . | . . . . . . . Uniques/NPCs Destroyed . | . . . . . . . Combat | -11 -10 -9 -8 -7 -7 -7 -------- Run | Scr Mat Mat Mat Fac Low Low Damage Taken 6188 | . 525 1078 1138 2180 814 453 Core 1147 | . 117 208 116 398 170 138 Absorbed by Shields . | . . . . . . . Regen/Repaired (Parts) 536 | . . 83 138 315 . . Core Remaining (%) 69 | 100 53 48 78 . . . Volleys Fired 412 | . 41 74 81 185 16 15 Largest 2 | . 2 2 2 2 2 2 Hottest 170 | . 70 91 91 170 115 105 Shots Fired 690 | . 81 144 162 254 22 27 Gun 451 | . 81 116 105 140 9 . Cannon 213 | . . 28 57 96 8 24 Launcher 26 | . . . . 18 5 3 Special . | . . . . . . . Kinetic 363 | . 41 96 81 115 6 24 Thermal 275 | . 40 48 81 102 4 . Explosive 26 | . . . . 18 5 3 Electromagnetic 26 | . . . . 19 7 . Robot Hit Streak 24 | . 7 17 24 11 9 3 Robot Miss Streak 5 | . 4 4 4 5 3 3 Penetration Max 1 | . . . . 1 . . Secondary Targets 2 | . . . . 2 . . Max Gunslinging Chain 1 | . . . . 1 . . Shots Hit Robots 430 | . 51 99 125 129 15 11 Core Hits 255 | . 28 52 51 91 22 11 Critical Kills 2 | . . 1 . 1 . . Critical Parts Destroyed 2 | . . 1 1 . . . Critical Strikes 12 | . . 3 3 5 . 1 Burn 4 | . . 1 2 1 . . Meltdown 1 | . . . . 1 . . Destroy 3 | . . 2 1 . . . Blast 4 | . . . . 3 . 1 Melee Attacks 1 | . . . . 1 . . Impact . | . . . . . . . Slashing . | . . . . . . . Piercing . | . . . . . . . Sneak Attacks 1 | . . . . 1 . . Combat Hostiles 1 | . . . . 1 . . Follow-up Attacks . | . . . . . . . Damage Inflicted 9806 | . 637 1694 2291 3821 947 416 Guns 4951 | . 637 1232 1212 1738 132 . Cannons 3122 | . . 430 1045 1191 144 312 Explosions 1667 | . . . . 892 671 104 Melee . | . . . . . . . Ramming 66 | . . 32 34 . . . Kinetic 4064 | . 311 1002 912 1412 115 312 Thermal 3837 | . 326 660 1345 1424 82 . Explosive 1628 | . . . . 853 671 104 Electromagnetic 211 | . . . . 132 79 . Impact . | . . . . . . . Slashing . | . . . . . . . Piercing . | . . . . . . . Highest Corruption 1 | . . . . 1 . . Average Corruption 1 | . . . . 1 . . Corruption Purged 2 | . . . . 2 . . Corruption Blocked . | . . . . . . . Effects 2 | . . . . 2 . . Heat Flow Errors 1 | . . . . 1 . . Parts Rejected 1 | . . . . 1 . . Overload Shots . | . . . . . . . Overflow Damage 77 | . . . 13 34 22 8 Projectiles 39 | . . . 13 13 5 8 Explosions 38 | . . . . 21 17 . Melee . | . . . . . . . Knockbacks 10 | . . 1 . 6 1 2 Impact 1 | . . 1 . . . . Kinetic 9 | . . . . 6 1 2 Secondary . | . . . . . . . Self-Inflicted Damage 210 | . . . . 59 151 . Shots 6 | . . . . 2 4 . Rammed 6 | . . 3 3 . . . Targets Rammed 9 | . . 5 4 . . . Kicked . | . . . . . . . Crushed 3 | . . 2 1 . . . Highest Temperature 317 | . 36 228 273 317 77 21 Average Temperature 62 | . 19 56 68 69 25 12 Received Heat Transfer 2166 | . 171 369 720 609 189 108 Effects 1 | . . . 1 . . . Energy Bleed 1 | . . . 1 . . . Siege Activations . | . . . . . . . Robots Corrupted . | . . . . . . . Combat Hostiles . | . . . . . . . Parts Fried . | . . . . . . . Impact Corruptions . | . . . . . . . Robots Melted 2 | . . 1 . 1 . . Combat Hostiles 2 | . . 1 . 1 . . Parts Melted 11 | . 1 4 4 2 . . Heat Transferred 7597 | . 856 1517 2627 2435 162 . Parts Sabotaged . | . . . . . . . Parts Stolen . | . . . . . . . Parts Stripped . | . . . . . . . Power Chain Reactions 1 | . . . . 1 . . Missiles Intercepted . | . . . . . . . Alert | -11 -10 -9 -8 -7 -7 -7 ------- Run | Scr Mat Mat Mat Fac Low Low Peak Influence 1221 | . 166 299 324 1221 . . Initial 100 | . . . 100 42 . . Average 223 | . 65 123 188 371 . . Maximum Alert Level 4 | . . 1 1 4 . . Low Security (%) 58 | 100 100 62 52 42 . . Level 1 24 | . . 37 47 14 . . Level 2 8 | . . . . 23 . . Level 3 5 | . . . . 14 . . Level 4 1 | . . . . 4 . . Level 5 . | . . . . . . . High Security . | . . . . . . . Max Security . | . . . . . . . Squads Dispatched 24 | . 1 1 5 17 . . Investigation 10 | . . . 3 7 . . Extermination 4 | . . . . 4 . . Reinforcement 8 | . 1 1 2 4 . . Assault 2 | . . . . 2 . . Garrison . | . . . . . . . Intercept . | . . . . . . . Searches Triggered . | . . . . . . . Construction Impeded 2 | . . . 1 1 . . Haulers Reinforced 2 | . . . . 2 . . Active Scanning Responses . | . . . . . . . Cargo Convoy Interrupts . | . . . . . . . Stealth | -11 -10 -9 -8 -7 -7 -7 --------- Run | Scr Mat Mat Mat Fac Low Low Distress Signals 6 | . . 2 3 1 . . Communications Jammed . | . . . . . . . Distress Signals . | . . . . . . . Times Spotted 180 | . 21 31 29 79 12 8 Peak Tracking Total 12 | . 5 8 4 12 7 3 Tactical Retreats 16 | . 1 . 1 12 2 . Traps | -11 -10 -9 -8 -7 -7 -7 ------- Run | Scr Mat Mat Mat Fac Low Low Traps Triggered 8 | . 2 1 . 5 . . Indirectly . | . . . . . . . Trap Hack Attempts . | . . . . . . . Triggered . | . . . . . . . Disarmed . | . . . . . . . Reprogrammed . | . . . . . . . Reused . | . . . . . . . Traps Extracted . | . . . . . . . Installed . | . . . . . . . Triggered 2 | . . . . . . 2 Machines | -11 -10 -9 -8 -7 -7 -7 ---------- Run | Scr Mat Mat Mat Fac Low Low Machines Disabled 8 | . . . . 8 . . Max in Single Turn 2 | . . . . 2 . . Garrison Access 2 | . . . 1 1 . . Machines Sabotaged . | . . . . . . . Garrisons Compromised . | . . . . . . . Overloaded Fab Kills . | . . . . . . . Hacking | -11 -10 -9 -8 -7 -7 -7 --------- Run | Scr Mat Mat Mat Fac Low Low Machines Accessed 39 | . 2 6 8 23 . . Terminals 25 | . 2 5 6 12 . . Fabricators 5 | . . . . 5 . . Repair Stations 4 | . . 1 1 2 . . Recycling Units 2 | . . . . 2 . . Scanalyzers 1 | . . . . 1 . . Garrison Access 2 | . . . 1 1 . . Total Hacks 130 | . 3 18 27 82 . . Successful 61 | . . 6 7 48 . . Failed 69 | . 3 12 20 34 . . Catastrophic 16 | . 1 2 7 6 . . Database Lockouts . | . . . . . . . Manual 68 | . 3 6 22 37 . . Terminals 90 | . 3 16 23 48 . . Fabricators 14 | . . . . 14 . . Repair Stations 9 | . . 2 3 4 . . Recycling Units 6 | . . . . 6 . . Scanalyzers 5 | . . . . 5 . . Garrison Access 6 | . . . 1 5 . . Terminal Hacks 23 | . . 3 4 16 . . Part Schematic 9 | . . . 2 7 . . Robot Schematic 2 | . . . . 2 . . Level Access Points 1 | . . . . 1 . . Branch Access Points 1 | . . . . 1 . . Terminal Index 1 | . . . . 1 . . Alert Level 3 | . . 1 1 1 . . Unreport Threat 3 | . . 1 1 1 . . Dispatch Records 1 | . . . . 1 . . Recall Extermination 1 | . . . . 1 . . Zone Layout 1 | . . 1 . . . . Fabricator Hacks 9 | . . . . 9 . . Network Status 1 | . . . . 1 . . Load Schematic 4 | . . . . 4 . . Build 4 | . . . . 4 . . Repair Station Hacks 8 | . . 2 2 4 . . Scan Component 4 | . . 1 1 2 . . Repair 4 | . . 1 1 2 . . Recycling Unit Hacks 2 | . . . . 2 . . Report Inventory 1 | . . . . 1 . . Retrieve Components 1 | . . . . 1 . . Scanalyzer 4 | . . . . 4 . . Insert Component 2 | . . . . 2 . . Analyze 2 | . . . . 2 . . Garrison Access Hacks 2 | . . . 1 1 . . Seal Access 2 | . . . 1 1 . . Unauthorized Hacks 12 | . . 1 . 11 . . Terminals 5 | . . 1 . 4 . . Assimilate 1 | . . . . 1 . . Botnet 2 | . . . . 2 . . Operators 2 | . . 1 . 1 . . Fabricators 1 | . . . . 1 . . Report 1 | . . . . 1 . . Repair Stations . | . . . . . . . Recycling Units 3 | . . . . 3 . . Reject 1 | . . . . 1 . . Recyclers 1 | . . . . 1 . . Mask 1 | . . . . 1 . . Scanalyzers . | . . . . . . . Garrison Access 3 | . . . . 3 . . Broadcast 1 | . . . . 1 . . Redirect 1 | . . . . 1 . . Watchers 1 | . . . . 1 . . Data Cores Recovered 1 | . . . 1 . . . Used . | . . . . . . . Hacking Detections 34 | . 2 5 7 20 . . Full Trace Events 12 | . . 2 5 5 . . Feedback Events . | . . . . . . . Feedback Blocked . | . . . . . . . Robot Schematics Acquired 2 | . . . . 2 . . Robots Built . | . . . . . . . Authchips . | . . . . . . . Time . | . . . . . . . Total Robot Build Rating . | . . . . . . . Part Schematics Acquired 11 | . . . 2 9 . . Parts Built 7 | . . . . 7 . . Authchips . | . . . . . . . Time 307 | . . . . 307 . . Total Part Build Rating 40 | . . . . 40 . . Parts Repaired 4 | . . 1 1 2 . . Time 146 | . . 32 38 76 . . Parts Recycled . | . . . . . . . Recycled Matter . | . . . . . . . Retrieved Matter . | . . . . . . . Retrieved Components 10 | . . . . 10 . . Parts Scanalyzed 2 | . . . . 2 . . Part Schematics Acquired 2 | . . . . 2 . . Parts Damaged . | . . . . . . . Bothacking | -11 -10 -9 -8 -7 -7 -7 ------------ Run | Scr Mat Mat Mat Fac Low Low Used RIF Installer . | . . . . . . . Robots Hacked . | . . . . . . . Non-combat . | . . . . . . . Combat . | . . . . . . . Robot Hacks Applied . | . . . . . . . Relay Couplers Released 3 | . . . . 3 . . Programmers 3 | . . . . 3 . . Fabnet Peak Effective % . | . . . . . . . Robots Rewired 2 | . . . . 2 . . Allies Hacked . | . . . . . . . Hacks Repelled . | . . . . . . . Allies | -11 -10 -9 -8 -7 -7 -7 -------- Run | Scr Mat Mat Mat Fac Low Low Total Allies 5 | . . . . 5 . . Largest Group 3 | . . . . 3 . . Highest-Rated Group 93 | . . . . 93 . . Highest-Rated Ally 31 | . . . . 31 . . Total Orders . | . . . . . . . Ally Attacks 54 | . . . . 54 . . Total Damage 676 | . . . . 676 . . Kills 6 | . . . . 6 . . Allies Corrupted 1 | . . . . 1 . . Allies Melted . | . . . . . . . Intel | -11 -10 -9 -8 -7 -7 -7 ------- Run | Scr Mat Mat Mat Fac Low Low Robot Analysis Total . | . . . . . . . Derelict Logs Recovered 3 | . . . . . 1 2 Drone Launches . | . . . . . . . Drone Recoveries . | . . . . . . . Exploration | -11 -10 -9 -8 -7 -7 -7 ------------- Run | Scr Mat Mat Mat Fac Low Low Turns Passed 9455 | 72 1232 1886 1733 3095 642 795 Spaces Moved 6002 | 43 559 709 594 2931 563 603 Core 7 | 1 . . . . 2 4 Treads 2071 | 30 445 504 594 498 . . Legs 878 | . . . . . 279 599 Wheels 331 | 12 114 205 . . . . Hover 2715 | . . . . 2433 282 . Flight . | . . . . . . . Fastest Speed 45 | 50 130 130 145 45 68 120 Average Speed 124 | 135 190 202 226 76 101 123 Slowest Speed 550 | 160 240 240 228 300 550 500 Overloaded Moves . | . . . . . . . Propulsion Burnouts . | . . . . . . . Robots Hopped . | . . . . . . . Cave-ins Triggered . | . . . . . . . Exploration Rate (%) 59 | 4 88 70 51 51 77 74 Regions Visited 6 Branch Regions 2 Pre-discovered Areas . | . . . . . . . Known Exits Taken 2 | . . . 1 1 . . Unknown Exits Taken 4 | 1 1 1 . . 1 . Scrap Searched 3 | . . . . . 1 2 Spaces Dug 35 | . . . . 35 . . Terrain Destroyed 199 | . . . . 134 36 29 Melee . | . . . . . . . Projectile 45 | . . . . 29 2 14 AOE 154 | . . . . 105 34 15 Terrain Rammed . | . . . . . . . Walls Destroyed . | . . . . . . . Machines Disabled . | . . . . . . . Actions | -11 -10 -9 -8 -7 -7 -7 --------- Run | Scr Mat Mat Mat Fac Low Low Total 7280 | 53 642 1017 821 3516 607 624 Wait 569 | . 20 158 113 266 7 5 Move 5996 | 42 558 708 593 2930 562 603 Hop . | . . . . . . . Pick Up 88 | 3 16 21 11 33 4 . Fast Attach 34 | 6 1 8 2 12 5 . Attach 32 | . 1 5 4 16 6 . Detach 6 | . . 2 . 1 3 . Swap 52 | 2 4 10 3 28 4 1 Drop 76 | . 1 26 10 39 . . Fire 412 | . 41 74 81 185 16 15 Melee 1 | . . . . 1 . . Ram . | . . . . . . . Kick . | . . . . . . . Crush 9 | . . 5 4 . . . Escape Stasis . | . . . . . . . Rewire 5 | . . . . 5 . . Trap . | . . . . . . . Miscellaneous . | . . . . . . . Route ------- -11/Scrapyard -10/Materials (discovered 5 exits: *Mat x3 / [*Min x2]) -9/Materials (discovered 5 exits: *Mat x2 / [*Min] / [*Sto x2]) -8/Materials (discovered 2 exits: *Fac x2) -7/Factory (discovered 6 exits: Fac x4 / *Low x2) -7/Lower Caves -7/Lower Caves (discovered 1 exit: *Fac) History --------- Turn | Location | Event 26 | -11/Scrapyard | Discovered new exit (range 16) 73 | -11/Scrapyard | Entered Materials 165 | -10/Materials | Discovered new exit (range 15) 290 | -10/Materials | Discovered new exit (range 6) 305 | -10/Materials | Build established: Mutant 454 | -10/Materials | Discovered new exit (range 3) 651 | -10/Materials | Discovered new exit (range 15) 771 | -10/Materials | Discovered new exit (range 3) 1305 | -10/Materials | Entered another Materials area 1305 | -9/Materials | Evolved 2 slots: Propulsion x2 1431 | -9/Materials | Discovered new exit (range 15) 1638 | -9/Materials | Discovered new exit (range 10) 2055 | -9/Materials | Build established: Scavenger-Mutant 2143 | -9/Materials | Discovered new exit (range 15) 2481 | -9/Materials | Build established: Mutant 2669 | -9/Materials | Destroyed 7 combat bots 2713 | -9/Materials | Discovered new exit (range 14) 2765 | -9/Materials | Repaired Hvy. Assault Rifle 2873 | -9/Materials | Core integrity fell below 50% 2975 | -9/Materials | Discovered new exit (range 16) 3191 | -9/Materials | Entered another Materials area 3191 | -8/Materials | Evolved 2 slots: Utility x2 3683 | -8/Materials | Repaired Adv. Treads 3848 | -8/Materials | Discovered new exit (range 6) 3921 | -8/Materials | Build established: Scavenger-Mutant 4189 | -8/Materials | Discovered new exit (range 5) 4922 | -8/Materials | Identified exit to Factory 4924 | -8/Materials | Entered Factory 4924 | -7/Factory | Evolved 2 slots: Utility x2 5193 | -7/Factory | Lost 3 parts (1p1n1w) 5534 | -7/Factory | Build established: Hacker-Mutant 5557 | -7/Factory | Repaired Adv. Treads 5574 | -7/Factory | Fabricated Antigrav System (x2) 6481 | -7/Factory | Lost 3 parts (1n1u1w) 6523 | -7/Factory | Repaired Imp. Light Armor Plating? 6789 | -7/Factory | Identified exit to Lower Caves 6789 | -7/Factory | Identified exit to Factory 7270 | -7/Factory | Fabricated Antigrav System (x2) 7375 | -7/Factory | Fabricated Arc Projector (x1) 7667 | -7/Factory | Allied Derelicts emerged from ambush trap array 7724 | -7/Factory | First assault squad dispatched 7730 | -7/Factory | Fabricated Mass Driver (x2) 7803 | -7/Factory | Lost 3 parts (1u2w) 7865 | -7/Factory | Core integrity fell below 50% 7905 | -7/Factory | Lost 3 parts (3n) 8019 | -7/Factory | Entered Lower Caves 8057 | -7/Lower Caves | Learned location of 1 exit from Proximity Caves 8223 | -7/Lower Caves | Attacked by a faux Warlord 8293 | -7/Lower Caves | Core integrity fell below 20% 8313 | -7/Lower Caves | Destroyed 7 combat bots 8317 | -7/Lower Caves | Lost 6 parts (3n2u1w) 8495 | -7/Lower Caves | Discovered new exit (range 14) 8661 | -7/Lower Caves | Entered another Lower Caves area 8665 | -7/Lower Caves | Learned Factory security intel 8731 | -7/Lower Caves | Discovered exit to Factory (range 9) 8815 | -7/Lower Caves | Attracted the attention of an 0b10 checkpoint 8853 | -7/Lower Caves | Learned Factory stockpile data 9084 | -7/Lower Caves | Spotted B-75 Beast 9456 | -7/Lower Caves | Destroyed by B-75 Beast with Magnetic Acceleration Cannon Last Messages --------------- 09396_ S-27 Virus destroyed. 09404_ Carbon-fiber Leg destroyed. 09404_ S-27 Virus destroyed. 09411_ The unstable cave ceiling collapses. 09418_ Autogun fries itself beyond repair. 09419_ VTOL Module fries itself beyond repair. 09421_ Acquired 16 matter. 09434_ Acquired 7 matter. 09440_ Searching scrap... 09440_ Found Cooling System. 09440_ Found Med. Matter Pod. 09440_ Found Arm. Huge Wheel. 09440_ Found 18 Matter. 09441_ Acquired 12 matter. 09442_ Imp. Deuterium Engine destroyed. 09442_ Carbon-fiber Leg destroyed. 09442_ Mni. Grenade Launcher destroyed. 09442_ Knocked back. 09442_ Carbon-fiber Leg destroyed. 09447_ Mass Driver blasted off. Map ----- +----------------------------------------------------+ | ?????????????????????????????????????????????????? | | ?????????????????????????????????????????????????? | | ?????????????????????????????????????????????????? | | ?????????????????????????????????????####????????? | | ?????????????????????????????????????# ##???????? | | ????????????????????????? ????????# #???????? | | ??????????????????????? ????????# #???????? | | ????????????????????# ????????## ##??????? | | ????????????????????# ?????????# ###????? | | ???????????????????## ????????## #????? | | ?????????????????### ????????# ##???? | | ????????????????## ????????# #??## | | ???????????????## ????????# ##### | | ??????????????## ######???### ##?# | | ??????????????? ## #?###?# ##???# | | ????????????????? # #?# ### ##???## | | ??????????????????# ### ## ##???## | | ????????????????????# BB ## ##???# | | ?????????????????????# BB # ##### | | ?????????????????????# ! # # # | | ???????????????????????# %!% ## | | ???????????????????????# = % ###### | | ?????????????????????### ;;;]## ####??## ## | | ??????????????# #### ## # ######## | | ???????????????# ## ### | | ???????????????## %@ ## | | ????????????????# % ## ##### | | ?????????????# ###??### | | ??????????? #??????# # | | ??????????? #### ## #??????## # | | ??????????????????####?## #???????## ### | | ????????????????????????# ##????????# ##?# | | ????????????????????????## ##?????????# ##??# | | ?????????????????????????# ##??????????####???# | | ????????????????????????? ##?????????????????## | | ????????????????????????? #??????????????????# | | ????????????????????????? ??????????????????# | | ????????????????????????? ??????????????????# | | ????????????????????????? ??????????????????#### | | ?????????????????????????? #?????????????????????# | | ?????????????????????????????????????????????????? | | ?????????????????????????????????????????????????? | | ?????????????????????????????????????????????????? | | ?????????????????????????????????????????????????? | | ?????????????????????????????????????????????????? | | ?????????????????????????????????????????????????? | | ?????????????????????????????????????????????????? | | ?????????????????????????????????????????????????? | | ?????????????????????????????????????????????????? | | ?????????????????????????????????????????????????? | +----------------------------------------------------+ Best States ------------- Heat Dissipation 48 Energy Generation 16 Energy Capacity 290 Matter Stores 300 Matter Capacity 300 Sight Range 16 Robot Scan Range 14 Terrain Scan Density 10 Armor Coverage 225 Evasion (%) 56 Targeting Accuracy 5 Recoil Reduction 4 Offensive Hacking 30 Defensive Hacking 10 Item Schematics ----------------- System Shield | -8/Materials | Hacked Hacking Suite | -8/Materials | Hacked Arc Projector | -7/Factory | Hacked Antigrav System | -7/Factory | Hacked Hvy. Phase Cannon | -7/Factory | Hacked Mass Driver | -7/Factory | Hacked Plasma Rifle | -7/Factory | Hacked Adv. Shield Generator | -7/Factory | Hacked System Restoration Module | -7/Factory | Scanalyzed Mni. Assault Cannon | -7/Factory | Scanalyzed Imp. Sensor Array | -7/Factory | Hacked Robot Schematics ------------------ T-07 Excavator | -7/Factory | Hacked P-60 Hacker | -7/Factory | Hacked Fabricated ------------ Antigrav System | x2 | -7/Factory Antigrav System | x2 | -7/Factory Arc Projector | x1 | -7/Factory Mass Driver | x2 | -7/Factory Alien Tech Used ----------------- None Achievements -------------- None Challenges ------------ None Game ------ Seed SchematicChargeLance Manual? 0 Play Time 01:30:50 Cumulative 205.2 hours Start 2022.10.03 @ 22:00:14 End 2022.10.03 @ 23:33:58 Sessions 1 Manual Loads 0 Difficulty Rogue Special Mode None Game No. 153 Rogue 150 Adventurer 3 Explorer 0 Win Type - Total 2 Types 1/0/1/0/0/0/0/0/0 Lore% 63 Gallery% 65 Achievement% 55 Wizard Run 0 Options --------- ASCII 0 Keyboard 0 Movement Numpad Keybinds 0 Fullscreen 1 Font 18/SmallcapsGlow Map View 76x50 Tactical HUD 1 Map Filters NONE Filters NONE Steam 1 RUN: ca11440f-a58e-4401-b12f-7b77ba76ee61